[Event "Late-Titled-Tuesday-Blitz-March-05-2024"]
[Site "Chess.com"]
[Date "2024.03.05"]
[Round "5"]
[White "finec2"]
[Black "rodp92"]
[Result "0-1"]
[WhiteElo "2215"]
[BlackElo "2494"]
[TimeControl "180+1"]
[EndTime "14:55:02 PST"]
[Termination "rodp92 won by resignation"]

1. e4 {[%clk 0:03:00]} 1... g6 {[%clk 0:02:59.8]} 2. d4 {[%clk 0:02:59.8]} 2...
c6 {[%clk 0:02:59.7]} 3. Nc3 {[%clk 0:02:59]} 3... d5 {[%clk 0:02:59.8]} 4. Nf3
{[%clk 0:02:58.7]} 4... dxe4 {[%clk 0:02:59.6]} 5. Nxe4 {[%clk 0:02:58.5]} 5...
Nf6 {[%clk 0:02:59.9]} 6. Bd3 {[%clk 0:02:57.7]} 6... Bg7 {[%clk 0:02:59.4]} 7.
O-O {[%clk 0:02:56.8]} 7... O-O {[%clk 0:02:58.8]} 8. c3 {[%clk 0:02:53.9]} 8...
a5 {[%clk 0:02:53.5]} 9. Re1 {[%clk 0:02:52.1]} 9... a4 {[%clk 0:02:52.9]} 10.
a3 {[%clk 0:02:40.8]} 10... Nbd7 {[%clk 0:02:52.2]} 11. Bf4 {[%clk 0:02:40.3]}
11... Nb6 {[%clk 0:02:51.5]} 12. h3 {[%clk 0:02:39.2]} 12... Nbd5 {[%clk
0:02:50.5]} 13. Bh2 {[%clk 0:02:37.5]} 13... Re8 {[%clk 0:02:45.6]} 14. Qd2
{[%clk 0:02:31]} 14... b6 {[%clk 0:02:35.4]} 15. Rad1 {[%clk 0:02:28.3]} 15...
Bb7 {[%clk 0:02:18.3]} 16. Bb1 {[%clk 0:02:09.2]} 16... Nxe4 {[%clk 0:02:03.4]}
17. Bxe4 {[%clk 0:02:07.3]} 17... b5 {[%clk 0:02:03.6]} 18. Be5 {[%clk
0:01:49.3]} 18... Bf6 {[%clk 0:01:53.9]} 19. Bb1 {[%clk 0:01:27.7]} 19... Bg7
{[%clk 0:01:30]} 20. Bxg7 {[%clk 0:01:24.9]} 20... Kxg7 {[%clk 0:01:30]} 21. Ne5
{[%clk 0:01:23.1]} 21... f6 {[%clk 0:01:23.7]} 22. Ng4 {[%clk 0:01:17.8]} 22...
Rh8 {[%clk 0:01:02.8]} 23. Qh6+ {[%clk 0:01:16.8]} 23... Kf7 {[%clk 0:01:03.1]}
24. Rd2 {[%clk 0:01:08.7]} 24... Qf8 {[%clk 0:01:02.3]} 25. Rde2 {[%clk
0:00:55.9]} 25... Qxh6 {[%clk 0:00:52.2]} 26. Nxh6+ {[%clk 0:00:56.8]} 26... Kg7
{[%clk 0:00:52.3]} 27. Ng4 {[%clk 0:00:56.5]} 27... Rhe8 {[%clk 0:00:48.9]} 28.
Be4 {[%clk 0:00:55.5]} 28... Nf4 {[%clk 0:00:45.5]} 29. Re3 {[%clk 0:00:41.9]}
29... f5 {[%clk 0:00:45.8]} 30. Bxf5 {[%clk 0:00:36.8]} 30... gxf5 {[%clk
0:00:29.1]} 31. Rxe7+ {[%clk 0:00:36.7]} 31... Kf8 {[%clk 0:00:29.3]} 32. Rxe8+
{[%clk 0:00:36.8]} 32... Rxe8 {[%clk 0:00:28.3]} 33. Rxe8+ {[%clk 0:00:37.4]}
33... Kxe8 {[%clk 0:00:29.2]} 34. Nf6+ {[%clk 0:00:37.6]} 34... Ke7 {[%clk
0:00:23.8]} 35. Nxh7 {[%clk 0:00:38.5]} 35... Nd3 {[%clk 0:00:23.8]} 36. h4
{[%clk 0:00:36.3]} 36... Nxb2 {[%clk 0:00:23.9]} 37. h5 {[%clk 0:00:36.7]} 37...
Nc4 {[%clk 0:00:19.9]} 38. h6 {[%clk 0:00:36.6]} 38... Kf7 {[%clk 0:00:20.1]}
39. Ng5+ {[%clk 0:00:36.2]} 39... Kg8 {[%clk 0:00:20.2]} 40. h7+ {[%clk
0:00:36.4]} 40... Kh8 {[%clk 0:00:20.3]} 41. f4 {[%clk 0:00:25.4]} 41... Nxa3
{[%clk 0:00:20.1]} 42. g4 {[%clk 0:00:25.7]} 42... Bc8 {[%clk 0:00:18.7]} 43.
Nf7+ {[%clk 0:00:23.3]} 43... Kxh7 {[%clk 0:00:17.8]} 44. Nd6 {[%clk 0:00:24.2]}
44... Bd7 {[%clk 0:00:16.1]} 45. g5 {[%clk 0:00:23.8]} 45... Nc4 {[%clk
0:00:15.9]} 0-1

[Event "Late-Titled-Tuesday-Blitz-March-05-2024"]
[Site "Chess.com"]
[Date "2024.03.05"]
[Round "5"]
[White "GoValya"]
[Black "yuriydovzik"]
[Result "1-0"]
[WhiteElo "2239"]
[BlackElo "2066"]
[TimeControl "180+1"]
[EndTime "14:55:03 PST"]
[Termination "GoValya won on time"]

1. d4 {[%clk 0:03:00.9]} 1... Na6 {[%clk 0:02:56]} 2. Nf3 {[%clk 0:03:00.2]}
2... c5 {[%clk 0:02:55.1]} 3. d5 {[%clk 0:02:59.7]} 3... Nc7 {[%clk 0:02:49.8]}
4. c4 {[%clk 0:02:59.2]} 4... d6 {[%clk 0:02:44.6]} 5. Nc3 {[%clk 0:02:58.2]}
5... g6 {[%clk 0:02:37.8]} 6. e4 {[%clk 0:02:57.4]} 6... Bg7 {[%clk 0:02:37]} 7.
Bf4 {[%clk 0:02:55.8]} 7... Nf6 {[%clk 0:02:29.3]} 8. Be2 {[%clk 0:02:37.2]}
8... O-O {[%clk 0:02:22.4]} 9. h3 {[%clk 0:02:36.9]} 9... a6 {[%clk 0:02:19.6]}
10. a4 {[%clk 0:02:33.7]} 10... b6 {[%clk 0:02:14.7]} 11. O-O {[%clk 0:02:32.6]}
11... Nh5 {[%clk 0:02:00.9]} 12. Bh2 {[%clk 0:02:31.6]} 12... Bh6 {[%clk
0:01:52.6]} 13. e5 {[%clk 0:02:18.9]} 13... Nf4 {[%clk 0:01:48]} 14. exd6 {[%clk
0:01:52.3]} 14... Nxe2+ {[%clk 0:01:37.1]} 15. Qxe2 {[%clk 0:01:47.9]} 15...
exd6 {[%clk 0:01:36.9]} 16. Ne4 {[%clk 0:01:33.1]} 16... Re8 {[%clk 0:01:24.4]}
17. Qc2 {[%clk 0:01:32.4]} 17... Bf5 {[%clk 0:01:22.9]} 18. Rae1 {[%clk
0:01:31.9]} 18... Rxe4 {[%clk 0:01:10.1]} 19. Rxe4 {[%clk 0:01:28.6]} 19... Qf6
{[%clk 0:01:10]} 20. Qe2 {[%clk 0:01:02.9]} 20... Bxe4 {[%clk 0:01:07.5]} 21.
Qxe4 {[%clk 0:01:02.7]} 21... Re8 {[%clk 0:00:55.8]} 22. Qh4 {[%clk 0:00:51.1]}
22... Qxh4 {[%clk 0:00:47.8]} 23. Nxh4 {[%clk 0:00:52]} 23... Bf8 {[%clk
0:00:40.6]} 24. f4 {[%clk 0:00:19.5]} 24... Re2 {[%clk 0:00:29.5]} 25. Rf2
{[%clk 0:00:19.5]} 25... Re4 {[%clk 0:00:26.2]} 26. b3 {[%clk 0:00:16.7]} 26...
Re3 {[%clk 0:00:22.8]} 27. Rf3 {[%clk 0:00:16]} 27... Re2 {[%clk 0:00:19.3]} 28.
Rd3 {[%clk 0:00:13]} 28... Rb2 {[%clk 0:00:16.2]} 29. Nf3 {[%clk 0:00:13]} 29...
h6 {[%clk 0:00:13.5]} 30. Bg3 {[%clk 0:00:12.9]} 30... f5 {[%clk 0:00:12.4]} 31.
Nh4 {[%clk 0:00:12.1]} 31... Kf7 {[%clk 0:00:11.4]} 32. Nf3 {[%clk 0:00:10.7]}
32... Bg7 {[%clk 0:00:10.7]} 33. Be1 {[%clk 0:00:10.7]} 33... Ne8 {[%clk
0:00:05.9]} 34. Bc3 {[%clk 0:00:10.1]} 34... Rxb3 {[%clk 0:00:03]} 35. Bxg7
{[%clk 0:00:06.9]} 35... Rxd3 {[%clk 0:00:02.2]} 36. Bxh6 {[%clk 0:00:07.3]}
36... Ra3 {[%clk 0:00:01.2]} 37. Ng5+ {[%clk 0:00:07.1]} 1-0

[Event "Late-Titled-Tuesday-Blitz-March-05-2024"]
[Site "Chess.com"]
[Date "2024.03.05"]
[Round "5"]
[White "Harry_Rakkel"]
[Black "Beca95"]
[Result "0-1"]
[WhiteElo "2693"]
[BlackElo "2973"]
[TimeControl "180+1"]
[EndTime "14:55:04 PST"]
[Termination "Beca95 won on time"]

1. e4 {[%clk 0:03:00.9]} 1... c5 {[%clk 0:02:54.3]} 2. Nf3 {[%clk 0:03:00.5]}
2... d6 {[%clk 0:02:54.8]} 3. d4 {[%clk 0:03:00]} 3... cxd4 {[%clk 0:02:55.7]}
4. Nxd4 {[%clk 0:03:00.2]} 4... Nf6 {[%clk 0:02:56.1]} 5. Nc3 {[%clk 0:03:00]}
5... a6 {[%clk 0:02:56.7]} 6. h4 {[%clk 0:02:58.8]} 6... e5 {[%clk 0:02:56.1]}
7. Nb3 {[%clk 0:02:58.6]} 7... Be7 {[%clk 0:02:54.2]} 8. Bg5 {[%clk 0:02:57.7]}
8... Be6 {[%clk 0:02:54.2]} 9. Bxf6 {[%clk 0:02:56.7]} 9... Bxf6 {[%clk
0:02:55.1]} 10. g3 {[%clk 0:02:56.1]} 10... Be7 {[%clk 0:02:55.5]} 11. Qd2
{[%clk 0:02:48.3]} 11... Nd7 {[%clk 0:02:55.3]} 12. O-O-O {[%clk 0:02:46.7]}
12... Nf6 {[%clk 0:02:55.3]} 13. Kb1 {[%clk 0:02:42.5]} 13... Rc8 {[%clk
0:02:54.9]} 14. Bg2 {[%clk 0:02:39.8]} 14... h5 {[%clk 0:02:54.3]} 15. f4 {[%clk
0:02:37.9]} 15... Qc7 {[%clk 0:02:51.3]} 16. f5 {[%clk 0:02:29.6]} 16... Bd7
{[%clk 0:02:50.6]} 17. Qe2 {[%clk 0:02:18.2]} 17... Bc6 {[%clk 0:02:46.3]} 18.
Nd2 {[%clk 0:02:07.2]} 18... b5 {[%clk 0:02:45]} 19. Rc1 {[%clk 0:01:51.3]}
19... O-O {[%clk 0:02:33.9]} 20. Nd5 {[%clk 0:01:42]} 20... Bxd5 {[%clk
0:02:33.5]} 21. exd5 {[%clk 0:01:41.7]} 21... Qa5 {[%clk 0:02:26.7]} 22. Ne4
{[%clk 0:01:31.7]} 22... Rc4 {[%clk 0:02:25.1]} 23. b3 {[%clk 0:01:23.3]} 23...
Nxe4 {[%clk 0:01:42.5]} 24. Bxe4 {[%clk 0:01:21.5]} 24... Rb8 {[%clk 0:01:42.8]}
25. Rhd1 {[%clk 0:00:51.9]} 25... Bf6 {[%clk 0:01:32.5]} 26. Rd3 {[%clk
0:00:43.4]} 26... Qb4 {[%clk 0:01:27.2]} 27. Re3 {[%clk 0:00:41.5]} 27... a5
{[%clk 0:01:21.1]} 28. c3 {[%clk 0:00:40]} 28... Qa3 {[%clk 0:01:14.2]} 29. Rc2
{[%clk 0:00:28.6]} 29... Rc7 {[%clk 0:01:12.3]} 30. Qxh5 {[%clk 0:00:27.4]}
30... b4 {[%clk 0:00:46.4]} 31. c4 {[%clk 0:00:20.5]} 31... a4 {[%clk
0:00:46.3]} 32. g4 {[%clk 0:00:20]} 32... axb3 {[%clk 0:00:39.9]} 33. Rxb3
{[%clk 0:00:19.7]} 33... Qa7 {[%clk 0:00:38.2]} 34. g5 {[%clk 0:00:19.1]} 34...
Qg1+ {[%clk 0:00:36.4]} 35. Rc1 {[%clk 0:00:19.1]} 35... Qd4 {[%clk 0:00:36.2]}
36. Bc2 {[%clk 0:00:14.8]} 36... g6 {[%clk 0:00:25.8]} 37. fxg6 {[%clk
0:00:12.4]} 37... Bg7 {[%clk 0:00:25.8]} 38. Rd1 {[%clk 0:00:06.3]} 38... Qxc4
{[%clk 0:00:23.7]} 39. gxf7+ {[%clk 0:00:06.2]} 39... Kf8 {[%clk 0:00:23.5]} 40.
Bg6 {[%clk 0:00:03.5]} 40... e4 {[%clk 0:00:22.4]} 0-1

[Event "Late-Titled-Tuesday-Blitz-March-05-2024"]
[Site "Chess.com"]
[Date "2024.03.05"]
[Round "5"]
[White "rynos0411"]
[Black "Yaacovn"]
[Result "1-0"]
[WhiteElo "2645"]
[BlackElo "2842"]
[TimeControl "180+1"]
[EndTime "14:55:04 PST"]
[Termination "rynos0411 won by resignation"]

1. e4 {[%clk 0:03:00.9]} 1... c6 {[%clk 0:02:58.5]} 2. d4 {[%clk 0:03:00]} 2...
d5 {[%clk 0:02:59.4]} 3. Nc3 {[%clk 0:03:00.5]} 3... dxe4 {[%clk 0:02:59.7]} 4.
Nxe4 {[%clk 0:03:01.4]} 4... Nf6 {[%clk 0:02:58.5]} 5. Nxf6+ {[%clk 0:03:01.1]}
5... gxf6 {[%clk 0:02:59.4]} 6. c3 {[%clk 0:02:56.5]} 6... Qd5 {[%clk
0:02:58.9]} 7. Nf3 {[%clk 0:02:54.4]} 7... Bg4 {[%clk 0:02:50.9]} 8. Be2 {[%clk
0:02:53.4]} 8... Nd7 {[%clk 0:02:45.7]} 9. h3 {[%clk 0:02:49.1]} 9... Bh5 {[%clk
0:02:45.7]} 10. Be3 {[%clk 0:02:42.4]} 10... e6 {[%clk 0:02:42.8]} 11. c4 {[%clk
0:02:37.6]} 11... Qa5+ {[%clk 0:02:38.8]} 12. Bd2 {[%clk 0:02:30.2]} 12... Bb4
{[%clk 0:02:36.5]} 13. Bxb4 {[%clk 0:02:26.2]} 13... Qxb4+ {[%clk 0:02:37.4]}
14. Qd2 {[%clk 0:02:26.6]} 14... Qxd2+ {[%clk 0:02:32.5]} 15. Kxd2 {[%clk
0:02:26.4]} 15... O-O-O {[%clk 0:02:28.5]} 16. Rad1 {[%clk 0:02:12.8]} 16...
Rhg8 {[%clk 0:02:27.6]} 17. g4 {[%clk 0:02:12.4]} 17... Bg6 {[%clk 0:02:27.5]}
18. Kc3 {[%clk 0:02:06.6]} 18... Kc7 {[%clk 0:02:27.3]} 19. Rhe1 {[%clk
0:01:58.1]} 19... Nb6 {[%clk 0:02:19.8]} 20. Nh4 {[%clk 0:01:54]} 20... Nc8
{[%clk 0:02:18.6]} 21. Nxg6 {[%clk 0:01:53.2]} 21... hxg6 {[%clk 0:02:19.5]} 22.
Bf3 {[%clk 0:01:47.6]} 22... Rh8 {[%clk 0:02:19.2]} 23. Bg2 {[%clk 0:01:48]}
23... Nd6 {[%clk 0:02:17.2]} 24. b4 {[%clk 0:01:37.1]} 24... f5 {[%clk 0:02:17]}
25. a4 {[%clk 0:01:31.1]} 25... Rh4 {[%clk 0:02:15.7]} 26. f3 {[%clk 0:01:26.6]}
26... a6 {[%clk 0:02:14.7]} 27. c5 {[%clk 0:01:24.9]} 27... Nc8 {[%clk
0:02:14.4]} 28. b5 {[%clk 0:01:24]} 28... Ne7 {[%clk 0:02:11.6]} 29. bxa6 {[%clk
0:01:08.9]} 29... bxa6 {[%clk 0:02:09.7]} 30. Rb1 {[%clk 0:01:09.4]} 30... Nd5+
{[%clk 0:02:09]} 31. Kc4 {[%clk 0:01:07.9]} 31... a5 {[%clk 0:02:06.9]} 32. Rb3
{[%clk 0:01:02.4]} 32... Rb8 {[%clk 0:02:05.6]} 33. Rxb8 {[%clk 0:01:01.7]}
33... Kxb8 {[%clk 0:02:06.5]} 34. Bf1 {[%clk 0:00:57.2]} 34... Kc7 {[%clk
0:02:03.8]} 35. gxf5 {[%clk 0:00:35.6]} 35... gxf5 {[%clk 0:01:57.4]} 36. Rb1
{[%clk 0:00:25.6]} 36... Rh8 {[%clk 0:01:47.3]} 37. Kd3 {[%clk 0:00:24]} 37...
Rg8 {[%clk 0:01:45.3]} 38. Kd2 {[%clk 0:00:19.3]} 38... Rg1 {[%clk 0:01:44]} 39.
Bd3 {[%clk 0:00:17.2]} 39... Rg2+ {[%clk 0:01:44.1]} 40. Ke1 {[%clk 0:00:16.6]}
40... Rh2 {[%clk 0:01:40.1]} 41. Bc4 {[%clk 0:00:13.8]} 41... Nb4 {[%clk
0:01:37.1]} 42. Bf1 {[%clk 0:00:12.8]} 42... Nc2+ {[%clk 0:01:35.7]} 43. Kd1
{[%clk 0:00:13.3]} 43... Ne3+ {[%clk 0:01:35.9]} 44. Ke1 {[%clk 0:00:12.9]}
44... Nc2+ {[%clk 0:01:36.2]} 45. Kd1 {[%clk 0:00:13.2]} 45... Nxd4 {[%clk
0:01:36.9]} 46. Rb6 {[%clk 0:00:12.4]} 46... Rh1 {[%clk 0:01:34.7]} 47. Ke1
{[%clk 0:00:12.4]} 47... Nxf3+ {[%clk 0:01:34.9]} 48. Kf2 {[%clk 0:00:12.9]}
48... Ne5 {[%clk 0:01:34.5]} 49. Ra6 {[%clk 0:00:13.2]} 49... Rh2+ {[%clk
0:01:27.6]} 50. Bg2 {[%clk 0:00:11.8]} 50... Nd3+ {[%clk 0:01:15.9]} 51. Kg1
{[%clk 0:00:12]} 51... Rxg2+ {[%clk 0:01:11.7]} 52. Kxg2 {[%clk 0:00:12.9]}
52... Nxc5 {[%clk 0:01:11.6]} 53. Rxa5 {[%clk 0:00:13.5]} 53... Ne4 {[%clk
0:01:08.1]} 54. h4 {[%clk 0:00:12.6]} 54... f4 {[%clk 0:01:08.2]} 55. Kf3 {[%clk
0:00:11.9]} 55... f5 {[%clk 0:01:04.3]} 56. Kxf4 {[%clk 0:00:12.1]} 56... Nf6
{[%clk 0:01:02.2]} 57. Kg5 {[%clk 0:00:11.7]} 57... Ne4+ {[%clk 0:01:02.4]} 58.
Kg6 {[%clk 0:00:11.9]} 58... f4 {[%clk 0:01:02.8]} 59. Re5 {[%clk 0:00:10.5]}
59... Ng3 {[%clk 0:01:01]} 60. Rxe6 {[%clk 0:00:08.6]} 60... f3 {[%clk
0:00:58.2]} 61. Rf6 {[%clk 0:00:08.9]} 1-0

[Event "Late-Titled-Tuesday-Blitz-March-05-2024"]
[Site "Chess.com"]
[Date "2024.03.05"]
[Round "5"]
[White "LikeWater"]
[Black "Harsha_Bharathakoti"]
[Result "1/2-1/2"]
[WhiteElo "2700"]
[BlackElo "2955"]
[TimeControl "180+1"]
[EndTime "14:55:06 PST"]
[Termination "Game drawn by repetition"]

1. e4 {[%clk 0:03:00.9]} 1... e6 {[%clk 0:02:50.1]} 2. d4 {[%clk 0:03:00.1]}
2... d5 {[%clk 0:02:50.7]} 3. e5 {[%clk 0:03:00.7]} 3... c5 {[%clk 0:02:50]} 4.
c3 {[%clk 0:03:01.4]} 4... Nc6 {[%clk 0:02:50.3]} 5. Nf3 {[%clk 0:03:02]} 5...
Bd7 {[%clk 0:02:50]} 6. Bd3 {[%clk 0:02:59.4]} 6... cxd4 {[%clk 0:02:46.6]} 7.
a3 {[%clk 0:02:53]} 7... Qb6 {[%clk 0:02:45.7]} 8. O-O {[%clk 0:02:51.5]} 8...
Nge7 {[%clk 0:02:44.7]} 9. Re1 {[%clk 0:02:46.2]} 9... Rc8 {[%clk 0:02:26.9]}
10. h4 {[%clk 0:02:30.5]} 10... a6 {[%clk 0:02:25.7]} 11. h5 {[%clk 0:02:28.7]}
11... h6 {[%clk 0:02:24.1]} 12. Nbd2 {[%clk 0:02:19.5]} 12... dxc3 {[%clk
0:02:20.1]} 13. bxc3 {[%clk 0:02:20.4]} 13... Na5 {[%clk 0:02:17.4]} 14. Rb1
{[%clk 0:02:11.6]} 14... Qc7 {[%clk 0:01:38.1]} 15. Nf1 {[%clk 0:02:05.5]} 15...
Nc4 {[%clk 0:01:32.9]} 16. a4 {[%clk 0:01:44.2]} 16... Nc6 {[%clk 0:01:31.3]}
17. Bxc4 {[%clk 0:01:32.5]} 17... dxc4 {[%clk 0:01:31.3]} 18. Bf4 {[%clk
0:01:28.1]} 18... Be7 {[%clk 0:01:18.4]} 19. Ne3 {[%clk 0:01:27.2]} 19... Na5
{[%clk 0:01:18.8]} 20. Nd5 {[%clk 0:01:21.9]} 20... Qc5 {[%clk 0:00:57]} 21. Nb6
{[%clk 0:01:17.4]} 21... Rd8 {[%clk 0:00:56.9]} 22. Nd4 {[%clk 0:01:04]} 22...
O-O {[%clk 0:00:25.2]} 23. Re3 {[%clk 0:00:50]} 23... Kh8 {[%clk 0:00:24.8]} 24.
Rg3 {[%clk 0:00:47.6]} 24... Rg8 {[%clk 0:00:25.1]} 25. Qd2 {[%clk 0:00:45.6]}
25... Nb3 {[%clk 0:00:20.7]} 26. Nxb3 {[%clk 0:00:41.4]} 26... Qxb6 {[%clk
0:00:18.5]} 27. Bxh6 {[%clk 0:00:38.8]} 27... cxb3 {[%clk 0:00:16.2]} 28. Qf4
{[%clk 0:00:28.4]} 28... Qc5 {[%clk 0:00:04.4]} 29. Qxf7 {[%clk 0:00:13.1]}
29... gxh6 {[%clk 0:00:03.7]} 30. Rg6 {[%clk 0:00:13.6]} 30... Bg5 {[%clk
0:00:02.4]} 31. Rd1 {[%clk 0:00:10.5]} 31... Qf8 {[%clk 0:00:02.9]} 32. Rxd7
{[%clk 0:00:01.9]} 32... Qxf7 {[%clk 0:00:02.9]} 33. Rxf7 {[%clk 0:00:02.8]}
33... Rg7 {[%clk 0:00:03.7]} 34. Rgxg7 {[%clk 0:00:02.7]} 34... b2 {[%clk
0:00:04.3]} 35. Rh7+ {[%clk 0:00:03.6]} 35... Kg8 {[%clk 0:00:04.7]} 36. Rhg7+
{[%clk 0:00:03.7]} 36... Kh8 {[%clk 0:00:05.3]} 37. Rh7+ {[%clk 0:00:03.8]}
37... Kg8 {[%clk 0:00:06.1]} 38. Rhg7+ {[%clk 0:00:04.1]} 38... Kh8 {[%clk
0:00:06.8]} 1/2-1/2

[Event "Late-Titled-Tuesday-Blitz-March-05-2024"]
[Site "Chess.com"]
[Date "2024.03.05"]
[Round "5"]
[White "vladoboch"]
[Black "jaskol95"]
[Result "0-1"]
[WhiteElo "2437"]
[BlackElo "2576"]
[TimeControl "180+1"]
[EndTime "14:55:06 PST"]
[Termination "jaskol95 won by resignation"]

1. e4 {[%clk 0:02:14.3]} 1... d5 {[%clk 0:02:58.1]} 2. exd5 {[%clk 0:02:14]}
2... Nf6 {[%clk 0:02:58.8]} 3. d4 {[%clk 0:02:12.1]} 3... Bg4 {[%clk 0:02:59.1]}
4. f3 {[%clk 0:02:12.1]} 4... Bf5 {[%clk 0:02:59.7]} 5. g3 {[%clk 0:02:12.4]}
5... Qxd5 {[%clk 0:02:50.1]} 6. c4 {[%clk 0:02:08.4]} 6... Qd7 {[%clk
0:02:49.2]} 7. Nc3 {[%clk 0:02:07.6]} 7... e6 {[%clk 0:02:49.2]} 8. Nge2 {[%clk
0:01:59]} 8... Nc6 {[%clk 0:02:49]} 9. Bg2 {[%clk 0:01:55.9]} 9... O-O-O {[%clk
0:02:43.2]} 10. Be3 {[%clk 0:01:54.2]} 10... Nb4 {[%clk 0:02:42.8]} 11. Ne4
{[%clk 0:01:44.7]} 11... Bxe4 {[%clk 0:02:21.2]} 12. fxe4 {[%clk 0:01:44.8]}
12... Ng4 {[%clk 0:02:21.9]} 13. Bg1 {[%clk 0:01:29.5]} 13... Nc6 {[%clk
0:02:12.1]} 14. h3 {[%clk 0:01:26.9]} 14... Bb4+ {[%clk 0:02:00.4]} 15. Nc3
{[%clk 0:01:20.7]} 15... Nf6 {[%clk 0:01:45.7]} 16. e5 {[%clk 0:01:20.3]} 16...
Ng8 {[%clk 0:01:40.7]} 17. Qb3 {[%clk 0:01:19.7]} 17... Nge7 {[%clk 0:01:38.8]}
18. O-O-O {[%clk 0:01:15.8]} 18... Nf5 {[%clk 0:01:25.2]} 19. d5 {[%clk
0:01:03.9]} 19... Bxc3 {[%clk 0:01:20.7]} 20. dxc6 {[%clk 0:00:55.8]} 20...
Qxd1+ {[%clk 0:01:17.9]} 21. Qxd1 {[%clk 0:00:56.3]} 21... Bxb2+ {[%clk
0:01:18]} 22. Kc2 {[%clk 0:00:53]} 22... Rxd1 {[%clk 0:01:17.5]} 23. cxb7+
{[%clk 0:00:44.8]} 23... Kb8 {[%clk 0:01:16.5]} 24. Kxd1 {[%clk 0:00:19.6]}
24... Bxe5 {[%clk 0:01:16.6]} 25. Bc5 {[%clk 0:00:07.1]} 25... Bd6 {[%clk
0:01:00.9]} 26. Bf2 {[%clk 0:00:04.2]} 26... Bxg3 {[%clk 0:00:55.1]} 27. Bxg3
{[%clk 0:00:03]} 27... Nxg3 {[%clk 0:00:56]} 28. Re1 {[%clk 0:00:03.2]} 28...
Rd8+ {[%clk 0:00:44.2]} 29. Kc2 {[%clk 0:00:03.5]} 29... Nf5 {[%clk 0:00:44]}
30. Kc3 {[%clk 0:00:03.5]} 30... c5 {[%clk 0:00:39.1]} 31. Re5 {[%clk
0:00:02.5]} 31... Rd7 {[%clk 0:00:22.1]} 32. Rxc5 {[%clk 0:00:02.6]} 32... Rc7
{[%clk 0:00:22.8]} 33. Rb5 {[%clk 0:00:02]} 33... Nd6 {[%clk 0:00:21.1]} 34. Rb4
{[%clk 0:00:02]} 34... a5 {[%clk 0:00:21.5]} 35. Rb6 {[%clk 0:00:02.1]} 35...
Nxc4 {[%clk 0:00:19.9]} 36. Rc6 {[%clk 0:00:02.2]} 36... Rxc6 {[%clk 0:00:19]}
37. Bxc6 {[%clk 0:00:03.1]} 37... Nd6 {[%clk 0:00:19.5]} 38. Kd4 {[%clk
0:00:02.8]} 38... Nxb7 {[%clk 0:00:19.3]} 39. Be8 {[%clk 0:00:03.1]} 39... Nd6
{[%clk 0:00:18.5]} 40. Bd7 {[%clk 0:00:03]} 40... Kc7 {[%clk 0:00:18.9]} 41. Ba4
{[%clk 0:00:03.7]} 41... Kb6 {[%clk 0:00:17.8]} 42. Bc2 {[%clk 0:00:04.4]} 42...
h6 {[%clk 0:00:17.3]} 43. Ke5 {[%clk 0:00:03.9]} 43... Kc5 {[%clk 0:00:17.2]}
44. a3 {[%clk 0:00:03.6]} 44... Nc4+ {[%clk 0:00:17.6]} 0-1

[Event "Late-Titled-Tuesday-Blitz-March-05-2024"]
[Site "Chess.com"]
[Date "2024.03.05"]
[Round "5"]
[White "Charodej1"]
[Black "picturesquecheck"]
[Result "1-0"]
[WhiteElo "2338"]
[BlackElo "2404"]
[TimeControl "180+1"]
[EndTime "14:55:08 PST"]
[Termination "Charodej1 won by resignation"]

1. e4 {[%clk 0:03:00.9]} 1... c5 {[%clk 0:02:58.5]} 2. Nf3 {[%clk 0:02:58.3]}
2... Nc6 {[%clk 0:02:58.5]} 3. d4 {[%clk 0:02:56.6]} 3... cxd4 {[%clk
0:02:59.4]} 4. Nxd4 {[%clk 0:02:56.8]} 4... Nf6 {[%clk 0:02:59.1]} 5. Nc3 {[%clk
0:02:55.5]} 5... d6 {[%clk 0:02:59.4]} 6. Bc4 {[%clk 0:02:54.3]} 6... Qb6 {[%clk
0:02:58.6]} 7. Nxc6 {[%clk 0:02:54.2]} 7... bxc6 {[%clk 0:02:58.4]} 8. O-O
{[%clk 0:02:53.7]} 8... e6 {[%clk 0:02:58.7]} 9. Qe2 {[%clk 0:02:43.7]} 9... Be7
{[%clk 0:02:56.9]} 10. e5 {[%clk 0:02:37.4]} 10... dxe5 {[%clk 0:02:56.3]} 11.
Qxe5 {[%clk 0:02:38]} 11... O-O {[%clk 0:02:56.5]} 12. Bb3 {[%clk 0:02:25.9]}
12... Ba6 {[%clk 0:02:53.6]} 13. Be3 {[%clk 0:02:12.8]} 13... Qb8 {[%clk
0:02:46.5]} 14. Qxb8 {[%clk 0:01:47.3]} 14... Raxb8 {[%clk 0:02:46.2]} 15. Bxa7
{[%clk 0:01:18.8]} 15... Ra8 {[%clk 0:02:43.9]} 16. Be3 {[%clk 0:01:15.6]} 16...
Bxf1 {[%clk 0:02:43.6]} 17. Rxf1 {[%clk 0:01:15]} 17... Nd5 {[%clk 0:02:44.2]}
18. Nxd5 {[%clk 0:01:06.8]} 18... cxd5 {[%clk 0:02:45.1]} 19. c4 {[%clk
0:00:59.5]} 19... dxc4 {[%clk 0:02:41.8]} 20. Bxc4 {[%clk 0:00:59.6]} 20... Rfc8
{[%clk 0:02:42.2]} 21. Bb3 {[%clk 0:00:59.6]} 21... Bf6 {[%clk 0:02:39.3]} 22.
Rb1 {[%clk 0:00:59]} 22... h6 {[%clk 0:02:38.2]} 23. Kf1 {[%clk 0:00:59.2]}
23... Rc7 {[%clk 0:02:22.3]} 24. Ke2 {[%clk 0:00:59.4]} 24... Rac8 {[%clk
0:02:22]} 25. Bd1 {[%clk 0:00:54.1]} 25... Rb7 {[%clk 0:02:16.2]} 26. b4 {[%clk
0:00:44.4]} 26... Ra8 {[%clk 0:02:13.9]} 27. a4 {[%clk 0:00:43.6]} 27... Be7
{[%clk 0:02:09.7]} 28. b5 {[%clk 0:00:43.9]} 28... Bd8 {[%clk 0:02:05.5]} 29.
Bb3 {[%clk 0:00:42.4]} 29... Bb6 {[%clk 0:01:58.9]} 30. Bxb6 {[%clk 0:00:32.1]}
30... Rxb6 {[%clk 0:01:59.8]} 31. Rc1 {[%clk 0:00:30.7]} 31... g6 {[%clk
0:01:52.3]} 32. Ke3 {[%clk 0:00:23]} 32... Kf8 {[%clk 0:01:51.8]} 33. Rc7 {[%clk
0:00:22.6]} 33... h5 {[%clk 0:01:45.9]} 34. Kd4 {[%clk 0:00:22.4]} 34... Rd6+
{[%clk 0:01:39.8]} 35. Kc3 {[%clk 0:00:19.7]} 35... Ke8 {[%clk 0:01:35.5]} 36.
Kb4 {[%clk 0:00:14.1]} 36... Rd7 {[%clk 0:01:35.5]} 37. Rc2 {[%clk 0:00:13.7]}
37... Rd4+ {[%clk 0:01:34.2]} 38. Kc5 {[%clk 0:00:12]} 38... Rdd8 {[%clk
0:01:30.4]} 39. Kb4 {[%clk 0:00:11.3]} 39... Rd4+ {[%clk 0:01:30.1]} 40. Bc4
{[%clk 0:00:11.2]} 40... Kd7 {[%clk 0:01:25.7]} 41. a5 {[%clk 0:00:11.5]} 41...
Kd6 {[%clk 0:01:21.3]} 42. b6 {[%clk 0:00:10.4]} 42... Rb8 {[%clk 0:01:05.3]}
43. Kb5 {[%clk 0:00:09.8]} 43... Rc8 {[%clk 0:01:02.3]} 44. b7 {[%clk
0:00:06.9]} 44... Rc5+ {[%clk 0:01:01.4]} 45. Kb6 {[%clk 0:00:06.4]} 45... Rc6+
{[%clk 0:00:55.9]} 46. Ka7 {[%clk 0:00:06.2]} 46... Rc7 {[%clk 0:00:52.1]} 47.
Ka8 {[%clk 0:00:04.9]} 47... Kc5 {[%clk 0:00:27.4]} 48. b8=Q {[%clk 0:00:05.2]}
1-0